[Event "1st Caplin Menchik Memorial 2022"]
[Site "London"]
[Date "2022.06.21"]
[Round "4.2"]
[White "Toma, Katarzyna"]
[Black "Schulze, Lara"]
[Result "0-1"]
[ECO "C45"]
[WhiteElo "2304"]
[BlackElo "2303"]
[Annotator "TA"]
[PlyCount "68"]
[EventDate "2022.06.21"]
[EventType "tourn"]
[EventCountry "ENG"]
[SourceTitle "playchess.com"]
[Source "ChessBase"]
[SourceQuality "1"]
[TimeControl "5400+30"]

{[%evp 13,68,2,-2,-66,-11,-51,0,7,16,7,31,35,49,33,62,75,92,47,63,48,60,40,72,-42,0,-68,-77,-66,-50,-59,-41,-63,-42,-32,-37,-43,-61,-33,-35,-23,-2,-6,0,-96,-96,-105,-116,-89,-119,-29987,-29988,-29988,-29989,-29996,-29997,-29997,-29998]} 1. e4 {[%emt 0:00:03]} e5 {[%emt 0:00:07]} 2. Nf3 {[%emt 0:00:16]} Nc6 {[%emt 0:00:14]} 3. d4 {[%emt 0:00:36]} exd4 {[%emt 0:00:11]} 4. Nxd4 {[%emt 0:00:07]} Nf6 {[%emt 0:00:16]} 5. Nxc6 {[%emt 0:05:03]} bxc6 {[%emt 0:00:15]} 6. e5 {[%emt 0:00:13]} Qe7 {[%emt 0:00:10]} 7. Qe2 {[%emt 0:00:07]} Nd5 {[%emt 0:00:10]} 8. Bd2 {[%emt 0:01:51] C45: Scotch Game.} ({Better is} 8. c4 $11 Ba6 9. Nd2) 8... Qe6 {[%emt 0:10:25]} (8... g6 $15) 9. a3 {[%emt 0:17:54]} a5 {[%emt 0:04:19]} (9... g6 $15) 10. Nc3 $11 {[%emt 0:02:07] [#] The position is equal.} Ba6 $146 {[%emt 0:10:11]} ({Predecessor:} 10... Nb6 11. Qe4 d5 12. exd6 Qxe4+ 13. Nxe4 cxd6 14. O-O-O Bf5 15. Ng5 Be7 16. Re1 h6 {1-0 (43) Mazzetta,R (1925)-Nastro,F (1608) Torino 2011}) 11. Qe4 {[%emt 0:00:49]} Bxf1 {[%emt 0:02:42]} 12. Rxf1 {[%emt 0:00:07]} Be7 {[%emt 0:15:28]} 13. f4 {[%emt 0:07:19]} Nxc3 {[%emt 0:05:14]} 14. Bxc3 {[%emt 0:00:06]} f5 {[%emt 0:00:16]} 15. Qd3 {[%emt 0:02:39]} d5 {[%emt 0:01:14]} 16. O-O-O {[%emt 0:00:18]} O-O {[%emt 0:01:20]} 17. g4 {[%emt 0:04:42]} Kh8 {[%emt 0:01:08]} 18. g5 {[%emt 0:09:18]} (18. a4 $16) 18... Rfd8 $1 $15 {[%emt 0:02:11][%cal Od5d4]} 19. a4 {[%emt 0:05:12]} (19. Be1 $1 $11) 19... c5 $1 {[%emt 0:03:37] Hoping for ...d4.} 20. b3 {[%emt 0:12:19]} c4 {[%emt 0:15:55]} 21. bxc4 {[%emt 0:01:00]} dxc4 {[%emt 0:01:04]} 22. Qe3 {[%emt 0:11:15]} Qc6 {[%emt 0:09:08]} 23. Rxd8+ $1 {[%emt 0:01:33]} Rxd8 {[%emt 0:00:06]} 24. e6 $1 {[%emt 0:06:03]} (24. Bxa5 Qxa4 25. Kb2 Qb5+) 24... Ba3+ {[%emt 0:07:03]} 25. Bb2 {[%emt 0:00:10]} Bb4 {[%emt 0:06:08]} 26. Bd4 {[%emt 0:05:53]} ({Don't play} 26. e7 Re8 27. Be5 (27. Qe5 $2 c3 $19) 27... Rxe7 $17) 26... Qxa4 {[%emt 0:02:29][%cal Oc4c3] aiming for ...c3!} 27. Qe5 {[%emt 0:02:33][%csl Gd4,LRc7,LRf5,LRg7][%cal Re5g7]} Bf8 $40 {[%emt 0:00:28][%cal Oc4c3][%mdl 128] White needs to defend precisely.} 28. Re1 {[%emt 0:01:40]} (28. Bb2 $11 Re8 29. Rd1 (29. Qxf5 Rb8 $17)) 28... c3 $1 $17 {[%emt 0:01:04] Dancing on a razor blade.} 29. Bxc3 {[%emt 0:01:58] And now e7 would win.} Ba3+ {[%emt 0:00:46]} (29... Qa3+ $2 30. Bb2 Qe7 31. Qxf5 $18) 30. Bb2 {[%emt 0:00:26]} (30. Kb1 Rb8+ 31. Bb2 Bxb2 32. Qxb2 Rxb2+ 33. Kxb2 Qb4+ 34. Ka1 Qxe1+ 35. Kb2 Qxe6 36. g6 Qb6+ 37. Kc1 a4 38. Kd2 a3 39. h3 a2 40. h4 Qd4+ 41. Ke2 a1=Q 42. Kf3 Qf1+ 43. Kg3 Qdxf4#) 30... Bxb2+ {[%emt 0:00:13]} 31. Kxb2 $2 {[%emt 0:01:13][%mdl 8192] White does not recover from this.} (31. Qxb2 $17 Qxf4+ 32. Kb1) 31... Qb4+ $1 {[%emt 0:00:46] Black mates.} 32. Kc1 {[%emt 0:00:51] [#]} Qd2+ $1 {[%emt 0:00:22]} 33. Kb2 {[%emt 0:00:34] [#]} Rb8+ $1 {[%emt 0:00:46]} 34. Ka1 {[%emt 0:00:38]} Qb4 {[%emt 0:00:35] Weighted Error Value: White=0.39/Black=0.11 (very precise)} 0-1

[Event "1st Caplin Menchik Memorial 2022"]
[Site "London"]
[Date "2022.06.21"]
[Round "4.3"]
[White "Hryshchenko, Kamila"]
[Black "Dworakowska, Joanna"]
[Result "1-0"]
[ECO "B02"]
[WhiteElo "2037"]
[BlackElo "2321"]
[Annotator "TA"]
[PlyCount "97"]
[EventDate "2022.06.21"]
[EventType "tourn"]
[EventCountry "ENG"]
[SourceTitle "playchess.com"]
[Source "ChessBase"]
[SourceQuality "1"]
[TimeControl "5400+30"]

{[%evp 9,97,12,20,14,45,45,44,46,38,-50,32,35,26,20,12,21,25,-32,-45,-41,86,29,31,28,65,61,58,51,57,20,14,4,0,7,43,38,27,36,137,137,142,143,103,73,79,79,79,79,73,82,118,133,127,33,137,0,0,0,0,-263,0,0,0,0,0,0,0,0,0,0,0,0,43,0,0,0,0,0,0,0,629,602,598,575,677,643,29974,29975,29981,29980]} 1. e4 {[%emt 0:02:06][%cal Be2e4,Be4e5][%mdl 32]} Nf6 {[%emt 0:00:10]} 2. d3 {[%emt 0:01:08]} d5 {[%emt 0:03:56]} 3. e5 {[%emt 0:02:05]} Nfd7 {[%emt 0:02:02]} 4. f4 {[%emt 0:00:42]} c5 {[%emt 0:01:25]} 5. c3 {[%emt 0:01:11]} Nc6 {[%emt 0:13:47]} 6. Nf3 {[%emt 0:00:25] [#] B02: Alekhine's Defence: Chase Variation and lines with early Nc3.} b5 $146 {[%emt 0:05:52]} ({Predecessor:} 6... Nb6 7. h3 h5 8. g3 Bf5 9. Nh4 e6 10. Nd2 Be7 11. Ndf3 g6 12. Bg2 c4 13. Nxf5 gxf5 {0-1 (34) Cherniaev,A (2460)-Korneev,O (2602) Moscow 2012}) 7. Qb3 {[%emt 0:06:15][%csl LRb5,LRd5]} e6 {[%emt 0:27:44]} 8. Qxb5 {[%emt 0:03:28] White is slightly better.} Qc7 {[%emt 0:00:04]} 9. Be2 {[%emt 0:06:16]} (9. g3 $14) 9... Be7 {[%emt 0:02:57]} (9... c4 $1 $15 10. Qa4 (10. dxc4 $2 Nc5 $19) 10... Nc5) 10. Qa4 {[%emt 0:03:16]} O-O {[%emt 0:01:49]} 11. O-O {[%emt 0:01:21]} f6 {[%emt 0:00:34][%cal Rf6e5]} 12. d4 {[%emt 0:02:17]} cxd4 {[%emt 0:05:38][%cal Rf6e5]} 13. cxd4 {[%emt 0:01:11]} (13. exf6 $1 $11 Nxf6 14. cxd4) 13... fxe5 $15 {[%emt 0:00:43]} 14. dxe5 {[%emt 0:09:45]} Nb4 {[%emt 0:09:25] Against Qc2} (14... Qb6+ $15 {stays ahead.} 15. Kh1 Nc5) 15. Na3 {[%emt 0:06:22]} (15. Nc3 $16) 15... Qb6+ $11 {[%emt 0:05:59]} 16. Kh1 {[%emt 0:00:13]} Rb8 {[%emt 0:00:08]} 17. Nc2 {[%emt 0:11:03]} Nxc2 {[%emt 0:01:58]} 18. Qxc2 {[%emt 0:00:13]} Nc5 $1 {[%emt 0:00:20]} 19. Rb1 {[%emt 0:08:31]} Ne4 {[%emt 0:00:07]} 20. g3 {[%emt 0:01:14]} a5 {[%emt 0:06:11]} 21. Kg2 {[%emt 0:03:48]} Ba6 {[%emt 0:04:14] [#]} 22. Be3 $1 {[%emt 0:08:47]} Qxe3 {[%emt 0:00:31]} 23. Bxa6 {[%emt 0:00:08]} Rb6 {[%emt 0:01:37] [#]} ({Black should try} 23... g5 $14) 24. Bd3 $1 $16 {[%emt 0:00:58]} Rfb8 {[%emt 0:00:36]} 25. Rfe1 {[%emt 0:07:42]} Qc5 {[%emt 0:00:01]} 26. Bxe4 {[%emt 0:04:40]} (26. Qe2 {keeps more tension.} Qc6 27. Rec1 Nc5 28. Rc2) 26... dxe4 {[%emt 0:00:04]} 27. Qxe4 {[%emt 0:00:21]} Rxb2+ {[%emt 0:00:17]} 28. Rxb2 {[%emt 0:00:45]} Rxb2+ {[%emt 0:00:02]} 29. Re2 {[%emt 0:00:45]} Rxe2+ {[%emt 0:01:37]} 30. Qxe2 {[%emt 0:00:11][%mdl 4096] Endgame KQB-KQN} a4 {[%emt 0:00:14]} 31. Qe4 {[%emt 0:01:41]} (31. g4 $16) 31... a3 {[%emt 0:00:50]} ({Better is} 31... Qb5 $1 $14) 32. f5 {[%emt 0:05:45]} (32. g4 $16) 32... exf5 $1 $11 {[%emt 0:00:09]} 33. Qxf5 {[%emt 0:00:11]} Qc4 {[%emt 0:00:48] Prevents Qe6+.} 34. Qd7 $2 {[%emt 0:02:06][%mdl 8192]} (34. Kh3 $11 {and White stays safe.}) 34... Qe2+ $2 {[%emt 0:01:06]} ({Black should play} 34... Qxa2+ $19 35. Nd2 Bb4 36. Qd8+ Bf8) 35. Kh3 {[%emt 0:00:06] Black must now prevent Qe8+.} Qf1+ {[%emt 0:04:10]} 36. Kg4 {[%emt 0:00:05]} h5+ {[%emt 0:00:06]} 37. Kf4 {[%emt 0:00:14]} g5+ {[%emt 0:00:32]} 38. Ke3 {[%emt 0:00:57]} Bc5+ {[%emt 0:00:39]} 39. Nd4 {[%emt 0:00:23] Strongly threatening Qd5+. Chess con chili.} Qe1+ {[%emt 0:00:47]} 40. Kd3 {[%emt 0:00:13]} Qxe5 {[%emt 0:00:50]} 41. Qc8+ {[%emt 0:00:40]} Kh7 {[%emt 0:00:17]} 42. Qb7+ {[%emt 0:00:41]} Kg6 {[%emt 0:00:16]} 43. Qc6+ {[%emt 0:00:15]} Kf7 {[%emt 0:00:21]} 44. Qf3+ {[%emt 0:00:32]} Qf6 $2 {[%emt 0:00:36][%mdl 8192]} (44... Kg6 $11 45. Qc6+ Kf7 46. Qd7+ Kg6) 45. Qd5+ $18 {[%emt 0:00:10]} Kg6 {[%emt 0:00:26]} 46. Qxc5 {[%emt 0:00:18] Ke4 is the strong threat.} Qf1+ {[%emt 0:00:03]} 47. Ke4 {[%emt 0:01:41] White threatens Qc6+ and mate.} Qg2+ {[%emt 0:00:10]} 48. Ke5 {[%emt 0:00:11]} h4 {[%emt 0:00:43]} 49. Qc2+ {[%emt 0:00:39] Weighted Error Value: White=0.34/Black=0.59} 1-0

[Event "1st Caplin Menchik Memorial 2022"]
[Site "London"]
[Date "2022.06.21"]
[Round "4.4"]
[White "Varney, Zoe"]
[Black "Koubova, Anna Marie"]
[Result "1/2-1/2"]
[ECO "A06"]
[WhiteElo "2046"]
[BlackElo "2115"]
[Annotator "NA RC"]
[PlyCount "245"]
[EventDate "2022.06.21"]
[EventType "tourn"]
[EventCountry "ENG"]
[SourceTitle "playchess.com"]
[Source "ChessBase"]
[SourceQuality "1"]
[TimeControl "5400+30"]

1. e3 {[%emt 0:02:27]} d5 {[%emt 0:01:05]} 2. Nf3 {[%emt 0:00:11]} Nf6 {[%emt 0:05:34]} 3. c4 {[%emt 0:00:22]} e6 {[%emt 0:01:06]} 4. b3 {[%emt 0:00:46]} Bd6 {[%emt 0:05:05]} 5. Bb2 {[%emt 0:00:37]} Nbd7 {[%emt 0:00:38]} 6. d4 {[%emt 0:01:47]} c6 {[%emt 0:01:11]} 7. Bd3 {[%emt 0:05:46]} Qe7 {[%emt 0:05:50]} 8. Ne5 {[%emt 0:03:28]} Bb4+ {[%emt 0:06:43]} 9. Nd2 {[%emt 0:02:23]} Nxe5 {[%emt 0:00:31]} 10. dxe5 {[%emt 0:00:09]} Nd7 {[%emt 0:00:07]} 11. O-O {[%emt 0:05:17]} f6 {[%emt 0:07:20]} 12. Nf3 {[%emt 0:15:32]} O-O {[%emt 0:07:23]} 13. Qc2 {[%emt 0:05:49]} f5 {[%emt 0:06:31]} 14. a3 {[%emt 0:15:49]} Ba5 {[%emt 0:05:01]} 15. b4 {[%emt 0:02:35]} Bd8 {[%emt 0:03:22]} 16. Nd2 {[%emt 0:11:25]} b6 {[%emt 0:02:28]} 17. b5 {[%emt 0:04:39]} Bb7 {[%emt 0:15:25]} 18. bxc6 {[%emt 0:01:22]} Bxc6 {[%emt 0:03:46]} 19. cxd5 {[%emt 0:00:08]} Bxd5 {[%emt 0:00:14]} 20. e4 {[%emt 0:00:14]} Bb7 {[%emt 0:06:28]} 21. exf5 {[%emt 0:02:39]} Rc8 {[%emt 0:02:38]} 22. Bc4 {[%emt 0:14:36]} b5 {[%emt 0:04:58]} 23. Qb3 {[%emt 0:01:46]} bxc4 {[%emt 0:05:12]} 24. Qxb7 {[%emt 0:00:04]} Rb8 {[%emt 0:00:19]} 25. Qxa7 {[%emt 0:01:18]} Rxb2 {[%emt 0:01:11]} 26. Nxc4 {[%emt 0:00:05]} Rc2 {[%emt 0:00:58]} 27. Qa4 {[%emt 0:01:25]} Re2 {[%emt 0:00:55]} 28. Qb5 {[%emt 0:01:08]} Qc5 {[%emt 0:01:53]} 29. Qxd7 {[%emt 0:00:27]} Qxc4 {[%emt 0:00:05]} 30. fxe6 {[%emt 0:00:17]} Rxe5 {[%emt 0:00:18]} 31. Rae1 {[%emt 0:00:40]} Rxe1 {[%emt 0:00:49]} 32. Rxe1 {[%emt 0:00:03]} Qc5 {[%emt 0:00:16]} 33. Rf1 {[%emt 0:00:37]} Qxa3 {[%emt 0:00:08]} 34. Rd1 {[%emt 0:00:49]} Bb6 {[%emt 0:01:02]} 35. e7 {[%emt 0:00:28]} Bxf2+ {[%emt 0:00:58]} 36. Kh1 {[%emt 0:00:15]} Bc5 {[%emt 0:00:21]} 37. exf8=Q+ {[%emt 0:00:30]} Bxf8 {[%emt 0:00:06]} 38. Rf1 {[%emt 0:00:10]} Qe7 {[%emt 0:00:16]} 39. Qd5+ {[%emt 0:00:44]} Kh8 {[%emt 0:00:06]} 40. Qa8 {[%emt 0:00:28]} Kg8 {[%emt 0:00:11]} 41. h3 {[%emt 0:00:07]} h6 {[%emt 0:00:13]} 42. Qd5+ {[%emt 0:00:26]} Kh8 {[%emt 0:00:11]} 43. Rf7 {[%emt 0:00:33]} Qe8 {[%emt 0:00:44]} 44. Rd7 {[%emt 0:00:21]} Qe1+ {[%emt 0:00:44]} 45. Kh2 {[%emt 0:00:01]} Qf2 {[%emt 0:00:52]} 46. Qe4 {[%emt 0:01:48]} Qf6 {[%emt 0:00:38]} 47. Qd4 {[%emt 0:00:51]} Qxd4 {[%emt 0:00:17]} 48. Rxd4 {[%emt 0:00:02]} Kh7 {[%emt 0:00:21]} 49. Kg3 {[%emt 0:00:09]} Be7 {[%emt 0:00:30]} 50. Kg4 {[%emt 0:00:14]} Bf6 {[%emt 0:01:49]} 51. Rd6 {[%emt 0:00:04]} Be5 {[%emt 0:00:33]} 52. Re6 {[%emt 0:00:04]} Ba1 {[%emt 0:00:13]} 53. Kf5 {[%emt 0:00:17]} Bb2 {[%emt 0:00:22]} 54. g4 {[%emt 0:00:14]} Bc3 {[%emt 0:00:53]} 55. Re7 {[%emt 0:01:05]} Bf6 {[%emt 0:00:18]} 56. Rf7 {[%emt 0:00:13]} Bg5 {[%emt 0:00:28]} 57. Rc7 {[%emt 0:00:36]} Bh4 {[%emt 0:00:35]} 58. Rc6 {[%emt 0:00:32]} Bg5 {[%emt 0:00:24]} 59. Ke4 {[%emt 0:00:53]} Bh4 {[%emt 0:00:21]} 60. Kf4 {[%emt 0:00:05]} Kg8 {[%emt 0:00:38]} 61. Rc8+ {[%emt 0:01:44]} Kh7 {[%emt 0:00:09]} 62. Kf5 {[%emt 0:00:23]} Bg5 {[%emt 0:00:20]} 63. Rc2 {[%emt 0:01:01]} Bh4 {[%emt 0:00:22]} 64. Re2 {[%emt 0:00:15]} Bg5 {[%emt 0:00:29]} 65. Rh2 {[%emt 0:00:13]} Bh4 {[%emt 0:00:12]} 66. Rh1 {[%emt 0:00:03]} g6+ {[%emt 0:01:47]} 67. Ke6 {[%emt 0:00:08]} Kg7 {[%emt 0:00:32]} 68. Rd1 {[%emt 0:00:07]} h5 {[%emt 0:00:27]} 69. Rg1 {[%emt 0:01:57]} hxg4 {[%emt 0:00:27]} 70. hxg4 {[%emt 0:00:13]} Kh6 {[%emt 0:00:40]} 71. Rh1 {[%emt 0:01:19]} Kg5 {[%emt 0:00:16]} 72. Kf7 {[%emt 0:00:29]} Kxg4 {[%emt 0:00:22]} 73. Kxg6 {[%emt 0:00:05]} Bg3 {[%emt 0:00:21]} 74. Rc1 {[%emt 0:00:21]} Kf4 {[%emt 0:00:23]} 75. Rc4+ {[%emt 0:00:10]} Ke5 {[%emt 0:00:25]} 76. Kg5 {[%emt 0:00:10]} Bf2 {[%emt 0:00:23]} 77. Kg4 {[%emt 0:00:41]} Bd4 {[%emt 0:00:22]} 78. Kf3 {[%emt 0:00:09]} Bg1 {[%emt 0:00:39]} 79. Re4+ {[%emt 0:00:38]} Kd5 {[%emt 0:00:13]} 80. Kf4 {[%emt 0:01:32]} Bh2+ {[%emt 0:00:24]} 81. Kf5 {[%emt 0:00:05]} Bb8 {[%emt 0:00:35]} 82. Re8 {[%emt 0:00:09]} Bc7 {[%emt 0:00:25]} 83. Re7 {[%emt 0:00:33]} Kd6 {[%emt 0:00:52]} 84. Re2 {[%emt 0:00:09]} Bb8 {[%emt 0:01:04]} 85. Rd2+ {[%emt 0:00:19]} Kc5 {[%emt 0:00:16]} 86. Ke4 {[%emt 0:00:11]} Bg3 {[%emt 0:00:36]} 87. Rd5+ {[%emt 0:00:17]} Kc6 {[%emt 0:00:23]} 88. Kd4 {[%emt 0:00:21]} Bf2+ {[%emt 0:00:14]} 89. Kc4 {[%emt 0:00:03]} Bg1 {[%emt 0:00:53]} 90. Rg5 {[%emt 0:00:08]} Bh2 {[%emt 0:00:25]} 91. Rg6+ {[%emt 0:00:08]} Kc7 {[%emt 0:00:18]} 92. Kd5 {[%emt 0:00:06]} Bf4 {[%emt 0:00:25]} 93. Rc6+ {[%emt 0:00:11]} Kb7 {[%emt 0:00:15]} 94. Kc5 {[%emt 0:00:04]} Be3+ {[%emt 0:00:11]} 95. Kb5 {[%emt 0:00:05]} Ba7 {[%emt 0:01:39]} 96. Rh6 {[%emt 0:00:15]} Bb8 {[%emt 0:00:20]} 97. Rh7+ {[%emt 0:00:11]} Ka8 {[%emt 0:00:40]} 98. Kb6 {[%emt 0:00:24]} Bg3 {[%emt 0:00:15]} 99. Ra7+ {[%emt 0:01:57]} Kb8 {[%emt 0:00:12]} 100. Rf7 {[%emt 0:00:06]} Ka8 {[%emt 0:00:39]} 101. Rf3 {[%emt 0:00:21]} Bh2 {[%emt 0:00:33]} 102. Rf1 {[%emt 0:02:30]} Be5 {[%emt 0:00:30]} 103. Rf8+ {[%emt 0:02:37]} Bb8 {[%emt 0:00:06]} 104. Rf7 {[%emt 0:00:05]} Bh2 {[%emt 0:00:59]} 105. Ra7+ {[%emt 0:01:31]} Kb8 {[%emt 0:00:07]} 106. Rg7 {[%emt 0:00:06]} Ka8 {[%emt 0:00:35]} 107. Rg2 {[%emt 0:00:19]} Bf4 {[%emt 0:00:15]} 108. Re2 {[%emt 0:00:22]} Bg3 {[%emt 0:00:38]} 109. Ra2+ {[%emt 0:00:50]} Kb8 {[%emt 0:00:07]} 110. Rg2 {[%emt 0:00:28]} Bc7+ {[%emt 0:00:13]} 111. Kc6 {[%emt 0:00:39]} Bf4 {[%emt 0:00:29]} 112. Rg4 {[%emt 0:00:47]} Bh2 {[%emt 0:00:17]} 113. Rg8+ {[%emt 0:00:31]} Ka7 {[%emt 0:00:07]} 114. Rg7+ {[%emt 0:00:15]} Ka8 {[%emt 0:00:43]} 115. Rg2 {[%emt 0:00:32]} Bf4 {[%emt 0:00:23]} 116. Rf2 {[%emt 0:00:30]} Bg3 {[%emt 0:00:39]} 117. Ra2+ {[%emt 0:00:38]} Kb8 {[%emt 0:00:07]} 118. Ra3 {[%emt 0:00:11]} Bf2 {[%emt 0:00:59]} 119. Rb3+ {[%emt 0:00:26]} Ka8 {[%emt 0:01:08]} 120. Rf3 {[%emt 0:00:40]} Bg1 {[%emt 0:00:36]} 121. Kc7 {[%emt 0:00:32]} Bh2+ {[%emt 0:00:20]} 122. Kc8 {[%emt 0:00:03]} Bg1 {[%emt 0:00:28]} 123. Rf1 {[%emt 0:00:57]} 1/2-1/2

[Event "1st Caplin Menchik Memorial 2022"]
[Site "London"]
[Date "2022.06.21"]
[Round "4.5"]
[White "Hunt, Harriet V"]
[Black "Vidic, Teja"]
[Result "1-0"]
[ECO "B12"]
[WhiteElo "2395"]
[BlackElo "2168"]
[Annotator "TA"]
[PlyCount "23"]
[EventDate "2022.06.21"]
[EventType "tourn"]
[EventCountry "ENG"]
[SourceTitle "playchess.com"]
[Source "ChessBase"]
[SourceQuality "1"]
[TimeControl "5400+30"]

{[%evp 15,23,35,34,-37,15,20,49,47,446,438]} 1. e4 {[%emt 0:00:02]} c6 {[%emt 0:00:08]} 2. d4 {[%emt 0:00:11]} d5 {[%emt 0:00:06]} 3. e5 {[%emt 0:00:13]} Bf5 {[%emt 0:00:19]} 4. Nf3 {[%emt 0:00:22][%cal Bg1f3,Bf3d4,Bd4f5][%mdl 32]} e6 {[%emt 0:00:35]} 5. Be2 {[%emt 0:00:09]} c5 {[%emt 0:00:23]} 6. Be3 {[%emt 0:00:41]} cxd4 {[%emt 0:00:26]} 7. Nxd4 {[%emt 0:00:29]} Ne7 {[%emt 0:00:23]} 8. c4 {[%emt 0:05:51] 8.0-0 is becoming the main line.} Nbc6 {[%emt 0:10:26]} 9. Nc3 {[%emt 0:17:43] B12: Caro-Kann: Advance Variation.} (9. Qa4 $1 $14) 9... dxc4 {[%emt 0:05:59]} (9... Nxd4 $15 10. Bxd4 dxc4) 10. Qa4 $11 {[%emt 0:04:48] [#] aiming for 0-0-0.} Qd7 $146 {[%emt 0:07:36]} ({Predecessor:} 10... Bd3 11. O-O-O Qd7 12. Bxd3 cxd3 13. Ndb5 Nf5 14. Bg5 Be7 15. Bxe7 Qxe7 16. g4 Nh6 {1-0 (47) Moiseenko,V (2501)-Dreev,A (2670) St Petersburg 2018}) 11. Rd1 {[%emt 0:09:23][%mdl 1024] White has compensation.} Nd5 $2 {[%emt 0:09:50][%mdl 8192]} (11... Nxe5 $2 12. Ndb5 Nd3+ 13. Bxd3 cxd3 14. Nd6+ Kd8 15. Qa5+ Qc7 16. Nxf7+ Kc8 17. Qxc7+ Kxc7 18. Nxh8 $18) (11... Bd3 $1 $14) 12. Nxf5 {[%emt 0:02:10] White took control after the opening.  Weighted Error Value: White=0.32/Black=1.33} 1-0